Cogmind - Beta 13 @@@ ROGUE MODE // 2024.04.04 @ 17:31:39 Player: Username Result: Destroyed by Z-Imprinter with Zionite Laser-M Performance ------------- Evolutions (1) 500 Regions Visited (5) 1000 Robots Destroyed (58) 290 Value Destroyed (956) 956 Prototype IDs (3) 60 Alien Tech Used (0) 0 Bonus (0) 0 TOTAL SCORE: 2806 Bonus ------- None Cogmind --------- Core Integrity 0/400 Matter 262/300 Energy 92/100 System Corruption 0% Temperature Cool (9) Movement Core (50) Location -7/Deep Caves Parts ------- > --- POWER (1) -------- (None) > --- PROPULSION (2) --- (None) > --- UTILITY (4) ------ (None) > --- WEAPON (2) ------- Makeshift Axe > --- INVENTORY (5) ---- Light Treads Light Treads Light Treads Medium Matter Pod (100) Makeshift Hammer Peak State ------------ > --- POWER ------------ Heavy Ion Engine > --- PROPULSION ------- Light Treads Light Treads > --- UTILITY ---------- Large Storage Unit Improved Sensor Array Signal Interpreter Makeshift Light Armor Plating > --- WEAPON ----------- Improved Assault Rifle Makeshift Hammer > --- INVENTORY -------- Ion Engine Improved Ion Engine Light Treads Light Treads Light Treads Light Treads Huge Storage Unit Medium Matter Pod High-capacity Matter Pod Medium Armor Plating Improved Assault Rifle Improved Assault Rifle Rocket Launcher Heavy Hammer Heavy Hammer [Rating: 23] Favorites ----------- Power Heavy Ion Engine Engine Heavy Ion Engine Power Core Light Nuclear Core Propulsion Light Treads Treads Light Treads Utility Signal Interpreter Device Sensor Array Storage Large Storage Unit Processor Signal Interpreter Protection Light Armor Plating Weapon Light Cannon Energy Gun Medium Laser Ballistic Gun Improved Assault Rifle Ballistic Cannon Light Cannon Launcher Mini Grenade Launcher Impact Weapon Hammer Slashing Weapon Makeshift Axe Build | -11 -10 -9 -9 -7 -7 ------- Run | Yrd Mat Mat Min Zio Dee Slots Evolved 2 | . . 2 . . . Power . | . . . . . . Propulsion . | . . . . . . Utility 2 | . . 2 . . . Weapon . | . . . . . . Parts Attached 56 | 7 16 24 4 4 1 Power 6 | 1 1 4 . . . Engine 5 | 1 . 4 . . . Core 1 | . 1 . . . . Reactor . | . . . . . . Propulsion 7 | 2 3 2 . . . Treads 7 | 2 3 2 . . . Leg . | . . . . . . Wheel . | . . . . . . Hover . | . . . . . . Flight . | . . . . . . Utility 15 | 2 5 4 2 2 . Device 3 | . . 2 . 1 . Storage 7 | 2 4 1 . . . Processor 2 | . 1 1 . . . Hackware . | . . . . . . Protection 3 | . . . 2 1 . Artifact . | . . . . . . Weapon 28 | 2 7 14 2 2 1 Energy Gun 1 | 1 . . . . . Energy Cannon . | . . . . . . Ballistic Gun 8 | 1 3 3 1 . . Ballistic Cannon 4 | . 2 2 . . . Launcher 5 | . . 4 1 . . Special Weapon . | . . . . . . Impact Weapon 8 | . 2 5 . 1 . Slashing Weapon 2 | . . . . 1 1 Piercing Weapon . | . . . . . . Special Melee Weapon . | . . . . . . Unidentified Prototypes 1 | . . 1 . . . Parts Lost 4 | . . 3 . . 1 Power 1 | . . 1 . . . Propulsion 1 | . . . . . 1 Utility 1 | . . 1 . . . Weapon 1 | . . 1 . . . Highest Loss Streak 2 | . . 2 . . 1 To Critical Strikes . | . . . . . . Average Slot Usage (%) 99 | . 100 99 100 100 100 Engine 7 | . 5 4 11 11 11 Core 4 | . 8 6 . . . Treads 23 | . 28 22 22 22 22 Device 8 | . . 11 18 11 11 Storage 13 | . 18 11 11 11 11 Processor 13 | . 9 20 11 11 11 Protection 3 | . . . 3 11 11 Ballistic Gun 7 | . 5 4 10 11 11 Ballistic Cannon 5 | . 12 5 . . . Impact Weapon 8 | . 9 8 11 9 . Slashing Weapon 1 | . . . . 1 11 Naked Turns . | . . . . . . Heaviest Build 42 | 14 30 36 42 39 39 Greatest Support 40 | 40 40 40 40 40 40 Greatest Overweight (x) 1 | . . . 1 . . Average Overweight (x) . | . . . . . . Largest Inventory Capacity 15 | 8 15 15 15 15 15 Average Capacity 13 | 7 11 15 15 15 14 Most Carried 15 | 5 12 15 15 15 15 Average Carried 12 | 1 9 12 14 14 14 Final Capacity 15 | 8 15 15 15 15 5 Final Carried 15 | 2 12 15 15 15 5 Class Distribution -------------------- 100% | Mutant Dominant Class ---------------- Mutant | -10/Materials Mutant | -9/Materials Mutant | -9/Mines Mutant | -7/Zion Mutant | -7/Deep Caves Resources | -11 -10 -9 -9 -7 -7 ----------- Run | Yrd Mat Mat Min Zio Dee Matter Collected 1595 | 314 588 585 98 10 . Remotely . | . . . . . . Salvage Created 1705 | 179 693 721 112 . . Parts 95 | 9 39 39 8 . . Haulers Intercepted 6 | . 2 4 . . . Recyclers Shooed 2 | . 2 . . . . Parts Field Recycled . | . . . . . . Retrieved Matter . | . . . . . . Parts Self-Destructed . | . . . . . . Prevented . | . . . . . . Kills | -11 -10 -9 -9 -7 -7 ------- Run | Yrd Mat Mat Min Zio Dee Combat Hostiles Destroyed 28 | . 11 13 4 . . Melee 2 | . . 2 . . . Guns 6 | . 3 3 . . . Cannons 10 | . 7 3 . . . AOE 9 | . 1 4 4 . . Classes Destroyed 11 | 3 5 3 . . . Worker 6 | 2 2 1 1 . . Builder 2 | . . 2 . . . Tunneler 3 | 2 . 1 . . . Hauler 6 | . 2 4 . . . Recycler 7 | 1 4 1 1 . . Operator 2 | . 1 1 . . . Watcher 4 | . 2 2 . . . Swarmer 13 | . 6 3 4 . . Grunt 11 | . 5 6 . . . Duelist 1 | . . 1 . . . Sentry 3 | . . 3 . . . Best Kill Streak 7 | 4 5 7 6 . . Combat Bots Only 5 | . 3 5 4 . . Max Kills in Single Turn 4 | 1 2 4 3 . . Gunslinging . | . . . . . . Exploded 3 | . 1 3 3 . . Melee 1 | . . 1 . . . Uniques/NPCs Destroyed . | . . . . . . Combat | -11 -10 -9 -9 -7 -7 -------- Run | Yrd Mat Mat Min Zio Dee Hostile Shots Fired 156 | . 58 56 12 . 30 Missed 53 | . 23 18 2 . 10 Damage Taken 1888 | . 384 745 78 . 681 Core 473 | . 41 179 13 . 240 Absorbed by Shields . | . . . . . . Regen/Repaired (Parts) 192 | . 156 36 . . . Core Remaining (%) 91 | 100 83 . . . . Volleys Fired 112 | 17 52 35 7 . 1 Largest 2 | 2 2 2 1 . 1 Hottest 70 | 70 70 65 30 . 23 Shots Fired 177 | 34 88 47 7 . 1 Gun 103 | 34 45 19 4 . 1 Cannon 61 | . 43 18 . . . Launcher 13 | . . 10 3 . . Special . | . . . . . . Kinetic 138 | 17 79 37 4 . 1 Thermal 26 | 17 9 . . . . Explosive 13 | . . 10 3 . . Electromagnetic . | . . . . . . Robot Hit Streak 12 | 6 8 12 2 . . Robot Miss Streak 4 | 4 3 2 1 . . Penetration Max . | . . . . . . Secondary Targets 2 | . 2 . . . . Max Gunslinging Chain 1 | . 1 . . . . Shots Hit Robots 125 | 19 57 45 4 . . Core Hits 59 | 8 22 20 9 . . Critical Kills . | . . . . . . Critical Parts Destroyed 6 | . 1 5 . . . Critical Strikes 9 | . 3 6 . . . Burn 1 | . 1 . . . . Blast 2 | . 1 1 . . . Smash 6 | . 1 5 . . . Melee Attacks 32 | . 6 20 3 . 3 Impact 29 | . 6 20 3 . . Slashing 3 | . . . . . 3 Piercing . | . . . . . . Sneak Attacks 12 | . 4 7 1 . . Combat Hostiles . | . . . . . . Follow-up Attacks . | . . . . . . Damage Inflicted 3485 | 193 1080 1831 381 . . Guns 648 | 190 240 177 41 . . Cannons 735 | . 526 209 . . . Explosions 1034 | . 23 786 225 . . Melee 1065 | . 291 659 115 . . Ramming 3 | 3 . . . . . Kinetic 1187 | 68 692 386 41 . . Thermal 681 | 122 74 485 . . . Explosive 526 | . . 301 225 . . Electromagnetic 23 | . 23 . . . . Impact 1065 | . 291 659 115 . . Slashing . | . . . . . . Piercing . | . . . . . . Highest Corruption 1 | . . 1 1 1 . Average Corruption 1 | . . 1 1 1 . Corruption Purged . | . . . . . . Corruption Blocked . | . . . . . . Effects 15 | . . 8 6 1 . Message Errors 4 | . . 2 1 1 . Matter Fused 6 | . . 4 2 . . Heat Flow Errors 1 | . . 1 . . . Energy Discharges 1 | . . . 1 . . Data Loss (minor) 2 | . . 1 1 . . Alerts 1 | . . . 1 . . Overload Shots . | . . . . . . Overflow Damage 719 | . 178 513 28 . . Projectiles . | . . . . . . Explosions 146 | . . 118 28 . . Melee 573 | . 178 395 . . . Knockbacks 14 | . 7 6 1 . . Impact 9 | . 2 6 1 . . Kinetic 5 | . 5 . . . . Secondary . | . . . . . . Self-Inflicted Damage 291 | . 50 241 . . . Shots 7 | . 2 5 . . . Rammed 1 | 1 . . . . . Targets Rammed 1 | 1 . . . . . Kicked . | . . . . . . Crushed . | . . . . . . Highest Temperature 167 | 100 100 167 . . 12 Average Temperature 26 | 34 20 27 . . 10 Received Heat Transfer 432 | . 99 153 . . 180 Siege Activations . | . . . . . . Robots Corrupted . | . . . . . . Combat Hostiles . | . . . . . . Parts Fried 7 | . 2 5 . . . Impact Corruptions 21 | . 8 13 . . . Robots Melted . | . . . . . . Combat Hostiles . | . . . . . . Parts Melted 2 | . . 2 . . . Heat Transferred 1016 | 370 296 350 . . . Parts Sabotaged . | . . . . . . Parts Stolen . | . . . . . . Parts Stripped . | . . . . . . Power Chain Reactions . | . . . . . . Alert | -11 -10 -9 -9 -7 -7 ------- Run | Yrd Mat Mat Min Zio Dee Peak Influence 391 | 25 286 391 195 . . Initial 87 | . 16 1 87 . . Average 138 | 10 115 197 106 . . Maximum Alert Level 1 | . 1 1 . . . Low Security (%) 71 | 100 82 44 100 . . Level 1 28 | . 17 55 . . . Level 2 . | . . . . . . Level 3 . | . . . . . . Level 4 . | . . . . . . Level 5 . | . . . . . . High Security . | . . . . . . Max Security . | . . . . . . Squads Dispatched 4 | . 2 2 . . . Investigation 1 | . . 1 . . . Extermination . | . . . . . . Reinforcement 3 | . 2 1 . . . Assault . | . . . . . . Garrison . | . . . . . . Intercept . | . . . . . . Searches Triggered . | . . . . . . Construction Impeded . | . . . . . . Haulers Reinforced . | . . . . . . Active Scanning Responses . | . . . . . . Cargo Convoy Interrupts . | . . . . . . Stealth | -11 -10 -9 -9 -7 -7 --------- Run | Yrd Mat Mat Min Zio Dee Distress Signals . | . . . . . . Communications Jammed . | . . . . . . Distress Signals . | . . . . . . Times Spotted 43 | . 18 18 5 . 2 Peak Tracking Total 5 | . 3 5 4 . 1 Tactical Retreats 1 | . . 1 . . . Traps | -11 -10 -9 -9 -7 -7 ------- Run | Yrd Mat Mat Min Zio Dee Traps Triggered . | . . . . . . Indirectly . | . . . . . . Trap Hack Attempts . | . . . . . . Triggered . | . . . . . . Disarmed . | . . . . . . Reprogrammed . | . . . . . . Reused . | . . . . . . Traps Extracted . | . . . . . . Installed . | . . . . . . Triggered . | . . . . . . Machines | -11 -10 -9 -9 -7 -7 ---------- Run | Yrd Mat Mat Min Zio Dee Machines Disabled 7 | . 3 4 . . . Max in Single Turn 2 | . 2 1 . . . Machines Repaired . | . . . . . . Machines Dismantled . | . . . . . . Machines Sabotaged . | . . . . . . Overloaded Fab Kills . | . . . . . . Hacking | -11 -10 -9 -9 -7 -7 --------- Run | Yrd Mat Mat Min Zio Dee Machines Accessed 9 | . 6 3 . . . Terminals 7 | . 5 2 . . . Fabricators . | . . . . . . Repair Stations 2 | . 1 1 . . . Recycling Units . | . . . . . . Scanalyzers . | . . . . . . Garrison Access . | . . . . . . Total Hacks 25 | . 20 5 . . . Successful 13 | . 9 4 . . . Failed 12 | . 11 1 . . . Catastrophic 1 | . 1 . . . . Database Lockouts . | . . . . . . Manual 5 | . . . . 5 . Terminals 13 | . 11 2 . . . Fabricators . | . . . . . . Repair Stations 12 | . 9 3 . . . Recycling Units . | . . . . . . Scanalyzers . | . . . . . . Garrison Access . | . . . . . . Terminal Hacks 5 | . 3 2 . . . Prototype ID Bank 1 | . 1 . . . . Emergency Access Points 1 | . . 1 . . . Alert Level 1 | . 1 . . . . Locate Traps 2 | . 1 1 . . . Fabricator Hacks . | . . . . . . Repair Station Hacks 8 | . 6 2 . . . Scan Component 4 | . 3 1 . . . Repair 4 | . 3 1 . . . Recycling Unit Hacks . | . . . . . . Scanalyzer . | . . . . . . Garrison Access Hacks . | . . . . . . Unauthorized Hacks . | . . . . . . Terminals . | . . . . . . Fabricators . | . . . . . . Repair Stations . | . . . . . . Recycling Units . | . . . . . . Scanalyzers . | . . . . . . Garrison Access . | . . . . . . Data Cores Recovered . | . . . . . . Used . | . . . . . . Hacking Detections 9 | . 6 3 . . . Full Trace Events 1 | . . 1 . . . Feedback Events 1 | . . 1 . . . Corruption 1 | . . 1 . . . Feedback Blocked . | . . . . . . Robot Schematics Acquired 3 | . . . . 3 . Robots Built . | . . . . . . Authchips . | . . . . . . Time . | . . . . . . Total Robot Build Rating . | . . . . . . Part Schematics Acquired 15 | . . . . 15 . Parts Built . | . . . . . . Authchips . | . . . . . . Time . | . . . . . . Total Part Build Rating . | . . . . . . Parts Repaired 4 | . 3 1 . . . Time 91 | . 78 13 . . . Parts Recycled . | . . . . . . Recycled Matter . | . . . . . . Retrieved Matter . | . . . . . . Retrieved Components . | . . . . . . Parts Scanalyzed . | . . . . . . Part Schematics Acquired . | . . . . . . Parts Damaged . | . . . . . . Bothacking | -11 -10 -9 -9 -7 -7 ------------ Run | Yrd Mat Mat Min Zio Dee Used RIF Installer . | . . . . . . Robots Hacked . | . . . . . . Non-combat . | . . . . . . Combat . | . . . . . . Robot Hacks Applied . | . . . . . . Relay Couplers Released . | . . . . . . Fabnet Peak Effective % . | . . . . . . Robots Rewired . | . . . . . . Allies Hacked . | . . . . . . Hacks Repelled . | . . . . . . Allies | -11 -10 -9 -9 -7 -7 -------- Run | Yrd Mat Mat Min Zio Dee Total Allies . | . . . . . . Largest Group . | . . . . . . Highest-Rated Group . | . . . . . . Highest-Rated Ally . | . . . . . . Total Orders . | . . . . . . Ally Attacks . | . . . . . . Total Damage . | . . . . . . Kills . | . . . . . . Allies Corrupted . | . . . . . . Allies Melted . | . . . . . . Intel | -11 -10 -9 -9 -7 -7 ------- Run | Yrd Mat Mat Min Zio Dee Robot Analysis Total . | . . . . . . Derelict Logs Recovered 3 | . . . 1 2 . Drone Launches . | . . . . . . Drone Recoveries . | . . . . . . Exploration | -11 -10 -9 -9 -7 -7 ------------- Run | Yrd Mat Mat Min Zio Dee Turns Passed 4436 | 188 1365 1205 490 788 400 Spaces Moved 2369 | 84 679 591 283 486 246 Core 13 | 10 . . . . 3 Treads 2356 | 74 679 591 283 486 243 Legs . | . . . . . . Wheels . | . . . . . . Hover . | . . . . . . Flight . | . . . . . . Fastest Speed 50 | 50 160 160 160 160 50 Average Speed 159 | 146 160 160 160 160 158 Slowest Speed 240 | 160 160 160 240 160 160 Overloaded Moves . | . . . . . . Propulsion Burnouts . | . . . . . . Robots Hopped . | . . . . . . Cave-ins Triggered . | . . . . . . Exploration Rate (%) 42 | 4 76 34 57 56 29 Regions Visited 5 Branch Regions 3 Pre-discovered Areas 1 | . . . 1 . . Known Exits Taken 4 | . 1 1 1 1 . Unknown Exits Taken 1 | 1 . . . . . Scrap Searched 3 | . . . 1 2 . Spaces Dug 6 | . . 1 2 . 3 Terrain Destroyed 136 | . . 125 8 . 3 Melee 6 | . . 1 2 . 3 Projectile . | . . . . . . AOE 130 | . . 124 6 . . Terrain Rammed . | . . . . . . Walls Destroyed . | . . . . . . Machines Disabled . | . . . . . . Actions | -11 -10 -9 -9 -7 -7 --------- Run | Yrd Mat Mat Min Zio Dee Total 2800 | 117 863 765 306 498 251 Wait 147 | 1 78 66 1 1 . Move 2364 | 83 678 590 282 485 246 Hop . | . . . . . . Pick Up 56 | 8 22 19 4 3 . Fast Attach 4 | 1 . 1 1 . 1 Attach 12 | 6 1 5 . . . Detach . | . . . . . . Swap 40 | . 15 18 3 4 . Drop 32 | . 11 11 5 5 . Fire 112 | 17 52 35 7 . 1 Melee 32 | . 6 20 3 . 3 Ram . | . . . . . . Kick . | . . . . . . Crush 1 | 1 . . . . . Escape Stasis . | . . . . . . Rewire . | . . . . . . Trap . | . . . . . . Miscellaneous . | . . . . . . Route ------- -11/Scrapyard -10/Materials (discovered 2 exits: *Mat x2) -9/Materials (discovered 2 exits: *Mat / *Min) -9/Mines (discovered 3 exits: *Mat x2 / *Zio) -7/Zion -7/Deep Caves History --------- Turn | Location | Event 4 | -11/Scrapyard | Discovered new exit (range 15) 189 | -11/Scrapyard | Entered Materials 318 | -10/Materials | Build established: Mutant 563 | -10/Materials | Discovered new exit (range 16) 600 | -10/Materials | Identified exit to Materials 881 | -10/Materials | Repaired Lgt. Treads 909 | -10/Materials | Repaired Lgt. Cannon 938 | -10/Materials | Repaired Lgt. Treads 1117 | -10/Materials | Discovered exit to Materials (range 12) 1554 | -10/Materials | Entered another Materials area 1554 | -9/Materials | Evolved 2 slots: Utility x2 1601 | -9/Materials | Repaired Lgt. Treads 2279 | -9/Materials | Discovered new exit (range 15) 2425 | -9/Materials | Discovered new exit (range 14) 2446 | -9/Materials | Identified exit to Materials 2521 | -9/Materials | Identified exit to Mines 2759 | -9/Materials | Entered Mines 3053 | -9/Mines | Discovered exit to Materials (range 11) 3076 | -9/Mines | Joined a pair of Derelicts in attacking an 0b10 outpost 3142 | -9/Mines | Learned location of Zion (-7) 3184 | -9/Mines | Received a Rocket Launcher from a helpful Derelict 3226 | -9/Mines | A Derelict revealed a hidden shortcut to a safe place 3226 | -9/Mines | Discovered exit to Materials (range 5) 3228 | -9/Mines | Identified exit to Zion 3249 | -9/Mines | Entered Zion 3284 | -7/Zion | Found CR-A16's Pointy Stick 3317 | -7/Zion | System corruption cleaned by Quarantine Array 3350 | -7/Zion | Learned Factory emergency access door positions 3773 | -7/Zion | Acquired unknown access codes intercepted by a Zionite 3826 | -7/Zion | Learned Factory stockpile data 3924 | -7/Zion | Learned Factory terminal intel 3997 | -7/Zion | Opened final containment barrier to the Deep Caves 4027 | -7/Zion | Discovered new exit (range 3) 4027 | -7/Zion | Saw the warning signs outside the Deep Caves entrance 4034 | -7/Zion | Identified exit to Deep Caves 4037 | -7/Zion | Entered Deep Caves 4407 | -7/Deep Caves | Attacked by Z-Imprinter 4411 | -7/Deep Caves | Core integrity fell below 50% 4418 | -7/Deep Caves | Core integrity fell below 20% 4431 | -7/Deep Caves | Z-Facility disabled 4434 | -7/Deep Caves | Released all parts (8) 4437 | -7/Deep Caves | Destroyed by Z-Imprinter with Zionite Laser-M Last Messages --------------- [Achievement: Adventurer] LOCATION=DEEP CAVES GOAL=ESCAPE 04397_ NEW_ZION: Z-Facility proximity alert. Z-Imprinter: GET AWAY FROM HERE! I've worked too hard for our future just to have you ruin everything! 04420_ 76-ZN2(o) is busy at the terminal. 04431_ Z-Facility disabled. 04434_ Lgt. Treads destroyed. 04434_ Released Mak. Axe. 04434_ Released Imp. Sensor Array. 04434_ Released Imp. Assault Rifle. 04434_ Released Signal Interpreter. 04434_ Released Lrg. Storage Unit. 04434_ Released Lgt. Treads. 04434_ Released Hvy. Ion Engine. 04434_ Released Mak. Light Armor Plating. 04434_ Acquired Mak. Axe. [Achievement: Achiever] Map ----- +----------------------------------------------------+ | ?????????????????????????????????????????????????? | | ???????????????#############?????????????????????? | | ??????????????# ##???????????????????? | | ?????????????? #????###????????????? | | ????????????? ###### ##?????######? | | ????????????? ## # #???### ## | | ????????????? ##### # | | ???????????? # | | ???????????? # | | ???????????? ## | | ???????????? #? | | ??????????????"" """""" ## | | ???????????????????"""""" # | | ??????????????????""""""" | | ?????????????????"""""""" z | | ?????????????????""""" I | | ?????????????????"""""""" | | ?????????????????"""""""" # | | ????????????????""""""""" ## | | ????????????????"""""""" #? | | ????????????????"""" " " #? | | ????????????????"""""o o ? | | ????????????????"""" *[! ? | | ????????????????"""""o![=[ ? | | ????????????????"""""!! !*! #? | | ????????????????"""""""]/@ ?? | | ????????????????"""""""""o ?? | | ?????????????????" ??? ??? | | ????????????????"" """ ?????? ??? | | ????????????????"" """"" ?????????? | | ????????????????"" """"""" ??????????? | | ????????????????"" ?"""""" ??????????? | | ????????????????""????"""" ??????????? | | ????????????????"???????" ???????????? | | ????????????????????????? ???????????? | | ?????????????????????????? ????????????? | | ?????????????????????????? ????????????? | | ?????????????????????????? ??????????????? | | ??????????????????????????? ????????????????? | | ??????????????????????????? ???????????????????? | | ??????????????????????????? ?????????????????????? | | ?????????????????????????????????????????????????? | | ?????????????????????????????????????????????????? | | ?????????????????????????????????????????????????? | | ?????????????????????????????????????????????????? | | ?????????????????????????????????????????????????? | | ?????????????????????????????????????????????????? | | ?????????????????????????????????????????????????? | | ?????????????????????????????????????????????????? | | ?????????????????????????????????????????????????? | +----------------------------------------------------+ Best States ------------- Heat Dissipation 38 Energy Generation 14 Energy Capacity 280 Matter Stores 449 Matter Capacity 500 Sight Range 16 Robot Scan Range 15 Terrain Scan Density 10 Armor Coverage 225 Evasion (%) 50 Targeting Accuracy 5 Recoil Reduction 2 Item Schematics ----------------- Coil Gun | -7/Zion | Archive Mak. Sword | -7/Zion | Archive Imp. Particle Charger | -7/Zion | Archive Dynamic Insulation System | -7/Zion | Archive Matter Compressor | -7/Zion | Archive Imp. Shield Generator | -7/Zion | Archive Adv. Melee Analysis Suite | -7/Zion | Archive Wave Gun | -7/Zion | Archive Recalibrator | -7/Zion | Archive Disruptor Cannon | -7/Zion | Archive Shock Absorption System | -7/Zion | Archive Force Field | -7/Zion | Archive Gauss Cannon | -7/Zion | Archive Imp. Trap Scanner | -7/Zion | Archive Imp. Field Recycling Unit | -7/Zion | Archive Robot Schematics ------------------ K-01 Serf | -7/Zion | Archive B-48 Gladiator | -7/Zion | Archive A-02 Transporter | -7/Zion | Archive Fabricated ------------ Nothing Alien Tech Used ----------------- None Achievements -------------- Achiever Adventurer Let's See Who's Tougher Signs Are For Wimps Challenges ------------ None Game ------ Seed StealthNodeFlightbrick Manual? 0 Play Time 00:58:30 Cumulative 26.4 hours Start 2024.04.04 @ 16:28:56 End 2024.04.04 @ 17:31:39 Sessions 1 Manual Loads 0 Difficulty Rogue Special Mode None Game No. 13 Rogue 13 Adventurer 0 Explorer 0 Win Type - Total 0 Types 0/0/0/0/0/0/0/0/0 Lore% 10 Gallery% 27 Achievement% 25 Wizard Run 0 Options --------- Layout 1 ASCII 0 Keyboard 0 Movement Mouse Keybinds 0 Fullscreen 2 Font 24/Crisp Map View 50x35 Zoom Use 0% Tactical HUD 1 Map Filters NONE Filters NONE Steam 1 RUN: bb8b4045-71e7-49aa-8aa3-d8a05954c52d